lending/lending_fUSD_20240112
["ID","MTS","AMOUNT","RATE_DAILY","PERIOD"]
[311366108,1705068646134,-500.0,0.00022859,2]
[311366111,1705068646144,-500.0,0.00022859,2]
[311366114,1705068646154,-500.0,0.00022859,2]
[311366118,1705068646164,-742.67,0.00022859,2]
[311366119,1705068646174,-500.0,0.00022859,2]
[311366122,1705068646183,-500.0,0.00022859,2]
[311366124,1705068646193,-500.0,0.00022859,2]
[311366127,1705068646202,-500.0,0.00022859,2]
[311366128,1705068646211,-500.0,0.00022859,2]
[311366130,1705068646221,-500.0,0.00022859,2]
[311366132,1705068646230,-329.93504412,0.00022859,2]
[311366133,1705068646239,-500.0,0.00022859,2]
[311366135,1705068646250,-500.0,0.00022859,2]
[311366137,1705068646259,-500.0,0.00022859,2]
[311366139,1705068646269,-500.0,0.00022859,2]
[311366140,1705068646278,-500.0,0.00022859,2]
[311366142,1705068646288,-500.0,0.00022859,2]
[311366144,1705068646298,-500.0,0.00022859,2]
[311366145,1705068646307,-500.0,0.00022859,2]
[311366147,1705068646317,-500.0,0.00022859,2]
[311366149,1705068646326,-500.0,0.00022859,2]
[311366151,1705068646336,-500.0,0.00022859,2]
[311366153,1705068646345,-500.0,0.00022859,2]
[311366155,1705068646355,-500.0,0.00022859,2]
[311366156,1705068646364,-500.0,0.00022859,2]
[311366158,1705068646374,-500.0,0.00022859,2]
[311366160,1705068646383,-500.0,0.00022859,2]
[311366162,1705068646393,-500.0,0.00022859,2]
[311366163,1705068646402,-500.0,0.00022859,2]
[311366165,1705068646412,-500.0,0.00022859,2]
[311366167,1705068646421,-500.0,0.00022859,2]
[311366169,1705068646431,-500.0,0.00022859,2]
[311366171,1705068646440,-500.0,0.00022859,2]
[311366172,1705068646449,-500.0,0.00022859,2]
[311366173,1705068646459,-500.0,0.00022859,2]
[311366175,1705068646468,-500.0,0.00022859,2]
[311366176,1705068646478,-500.0,0.00022859,2]
[311366178,1705068646487,-500.0,0.00022859,2]
[311366179,1705068646497,-500.0,0.00022859,2]
[311366181,1705068646506,-500.0,0.00022859,2]
[311366182,1705068646516,-500.0,0.00022859,2]
[311366184,1705068646525,-702.19,0.00022859,2]
[311366186,1705068646535,-500.0,0.00022859,2]
[311366188,1705068646546,-660.82,0.00022859,2]
[311366189,1705068646556,-500.0,0.00022859,2]
[311366191,1705068646566,-500.0,0.00022859,2]
[311366193,1705068646575,-500.0,0.00022859,2]
[311366194,1705068646584,-500.0,0.00022859,2]
[311366197,1705068646602,-547.96,0.00022859,2]
[311366199,1705068646616,-500.0,0.00022859,2]
[311366201,1705068646626,-500.0,0.00022859,2]
[311366202,1705068646636,-500.0,0.00022859,2]
[311366204,1705068646646,-500.0,0.00022859,2]
[311366207,1705068646656,-500.0,0.00022859,2]
[311366210,1705068646666,-500.0,0.00022859,2]
[311366211,1705068646676,-564.56,0.00022859,2]
[311366213,1705068646687,-500.0,0.00022859,2]
[311366215,1705068646697,-500.0,0.00022859,2]
[311366218,1705068646707,-500.0,0.00022859,2]
[311366220,1705068646717,-500.0,0.00022859,2]
[311366222,1705068646727,-588.32,0.00022859,2]
[311366224,1705068646736,-500.0,0.00022859,2]
[311366226,1705068646747,-500.0,0.00022859,2]
[311366228,1705068646757,-500.0,0.00022859,2]
[311366230,1705068646767,-500.0,0.00022859,2]
[311366232,1705068646776,-500.0,0.00022859,2]
[311366234,1705068646786,-500.0,0.00022859,2]
[311366236,1705068646797,-500.0,0.00022859,2]
[311366238,1705068646806,-500.0,0.00022859,2]
[311366240,1705068646815,-500.0,0.00022859,2]
[311366242,1705068646825,-500.0,0.00022859,2]
[311366244,1705068646835,-500.0,0.00022859,2]
[311366246,1705068646845,-500.0,0.00022859,2]
[311366248,1705068646856,-614.84,0.00022859,2]
[311366250,1705068646866,-500.0,0.00022859,2]
[311366252,1705068646875,-500.0,0.00022859,2]
[311366254,1705068646885,-500.0,0.00022859,2]
[311366256,1705068646894,-500.0,0.00022859,2]
[311366259,1705068646905,-500.0,0.00022859,2]
[311366260,1705068646917,-500.0,0.00022859,2]
[311366263,1705068646926,-500.0,0.00022859,2]
[311366264,1705068646936,-523.0,0.00022859,2]
[311366265,1705068646945,-500.0,0.00022859,2]
[311366266,1705068646955,-500.0,0.00022859,2]
[311366267,1705068646964,-534.34,0.00022859,2]
[311366268,1705068646974,-500.0,0.00022859,2]
[311366269,1705068646983,-500.0,0.00022859,2]
[311366270,1705068646993,-500.0,0.00022859,2]
[311366271,1705068647003,-500.0,0.00022859,2]
[311366272,1705068647013,-526.44,0.00022859,2]
[311366273,1705068647022,-525.7,0.00022859,2]
[311366274,1705068647032,-531.18,0.00022859,2]
[311366275,1705068647041,-500.0,0.00022859,2]
[311366276,1705068647051,-500.0,0.00022859,2]
[311366277,1705068647060,-500.0,0.00022859,2]
[311366278,1705068647069,-500.0,0.00022859,2]
[311366279,1705068647080,-500.0,0.00022859,2]
[311366280,1705068647090,-594.65,0.00022859,2]
[311366282,1705068647099,-500.0,0.00022859,2]
[311366283,1705068647109,-500.0,0.00022859,2]
[311366286,1705068647119,-500.0,0.00022859,2]
[311366288,1705068647129,-500.0,0.00022859,2]
[311366290,1705068647138,-500.0,0.00022859,2]
[311366292,1705068647148,-500.0,0.00022859,2]
[311366294,1705068647157,-500.0,0.00022859,2]
[311366296,1705068647167,-574.92,0.00022859,2]
[311366298,1705068647177,-500.0,0.00022859,2]
[311366300,1705068647186,-500.0,0.00022859,2]
[311366302,1705068647195,-500.0,0.00022859,2]
[311366304,1705068647204,-1076.56,0.00022859,2]
[311366306,1705068647214,-500.0,0.00022859,2]
[311366308,1705068647226,-500.0,0.00022859,2]
[311366310,1705068647236,-500.0,0.00022859,2]
[311366312,1705068647247,-500.0,0.00022859,2]
[311366315,1705068647257,-500.0,0.00022859,2]
[311366317,1705068647267,-500.0,0.00022859,2]
[311366353,1705068647608,-500.0,0.00022859,2]
[311366356,1705068647629,-500.0,0.00022859,2]
[311366358,1705068647639,-500.0,0.00022859,2]
[311366360,1705068647648,-384.85735028,0.00022859,2]
[311366362,1705068647658,-500.0,0.00022859,2]
[311366364,1705068647668,-500.0,0.00022859,2]
[311366366,1705068647678,-528.90779789,0.00022859,2]
[311366368,1705068647688,-500.0,0.00022859,2]
[311366370,1705068647698,-232.7919442,0.00022859,2]
[311366372,1705068647707,-500.0,0.00022859,2]
[311366374,1705068647717,-500.0,0.00022859,2]
[311366376,1705068647727,-500.0,0.00022859,2]
[311366378,1705068647736,-500.0,0.00022859,2]
[311366380,1705068647747,-500.0,0.00022859,2]
[311366382,1705068647756,-500.0,0.00022859,2]
[311366384,1705068647765,-500.0,0.00022859,2]
[311366386,1705068647773,-500.0,0.00022859,2]
[311366388,1705068647782,-500.0,0.00022859,2]
[311366390,1705068647791,-525.37,0.00022859,2]
[311366392,1705068647801,-500.0,0.00022859,2]
[311366394,1705068647810,-500.0,0.00022859,2]
[311366396,1705068647819,-500.0,0.00022859,2]
[311366398,1705068647829,-500.0,0.00022859,2]
[311366400,1705068647838,-500.0,0.00022859,2]
[311366402,1705068647848,-500.0,0.00022859,2]
[311366404,1705068647857,-500.0,0.00022859,2]
[311366406,1705068647866,-500.0,0.00022859,2]
[311366408,1705068647876,-500.0,0.00022859,2]
[311366410,1705068647885,-175.01,0.00022859,2]
[311366412,1705068647894,-500.0,0.00022859,2]
[311366414,1705068647903,-500.0,0.00022859,2]
[311366416,1705068647913,-500.0,0.00022859,2]
[311366418,1705068647922,-553.53,0.00022859,2]
[311366420,1705068647932,-500.0,0.00022859,2]
[311366422,1705068647942,-500.0,0.00022859,2]
[311366425,1705068647951,-500.0,0.00022859,2]
[311366427,1705068647960,-500.0,0.00022859,2]
[311366429,1705068647970,-500.0,0.00022859,2]
[311366431,1705068647979,-561.80598699,0.00022859,2]
[311366433,1705068647988,-500.0,0.00022859,2]
[311366435,1705068647999,-500.0,0.00022859,2]
[311366436,1705068648009,-561.78,0.00022859,2]
[311366438,1705068648018,-500.0,0.00022859,2]
[311366440,1705068648027,-500.0,0.00022859,2]
[311366442,1705068648037,-500.0,0.00022859,2]
[311366444,1705068648046,-500.0,0.00022859,2]
[311366447,1705068648055,-500.0,0.00022859,2]
[311366449,1705068648064,-500.0,0.00022859,2]
[311366451,1705068648074,-500.0,0.00022859,2]
[311366453,1705068648084,-511.92,0.00022859,2]
[311366455,1705068648093,-500.0,0.00022859,2]
[311366457,1705068648102,-500.0,0.00022859,2]
[311366459,1705068648111,-500.0,0.00022859,2]
[311366461,1705068648120,-504.1,0.00022859,2]
[311366463,1705068648130,-3341.97,0.00022859,2]
[311366465,1705068648139,-500.0,0.00022859,2]
[311366467,1705068648148,-500.0,0.00022859,2]
[311366469,1705068648157,-500.0,0.00022859,2]
[311366471,1705068648166,-500.0,0.00022859,2]
[311366473,1705068648176,-625.8,0.00022859,2]
[311366475,1705068648185,-500.0,0.00022859,2]
[311366477,1705068648194,-500.0,0.00022859,2]
[311366479,1705068648203,-1940.7,0.00022859,2]
[311366481,1705068648212,-500.0,0.00022859,2]
[311366483,1705068648222,-500.0,0.00022859,2]
[311366485,1705068648231,-635.78,0.00022859,2]
[311366487,1705068648241,-500.0,0.00022859,2]
[311366489,1705068648252,-500.0,0.00022859,2]
[311366491,1705068648262,-500.0,0.00022859,2]
[311366492,1705068648271,-500.0,0.00022859,2]
[311366494,1705068648280,-828.55,0.00022859,2]
[311366496,1705068648292,-500.0,0.00022859,2]
[311366498,1705068648302,-500.0,0.00022859,2]
[311366501,1705068648312,-500.0,0.00022859,2]
[311366503,1705068648322,-1875.18,0.00022859,2]
[311366504,1705068648331,-6951.96,0.00022859,2]
[311366507,1705068648340,-500.0,0.00022859,2]
[311366509,1705068648349,-588.73,0.00022859,2]
[311366511,1705068648359,-500.0,0.00022859,2]
[311366513,1705068648368,-500.0,0.00022859,2]
[311366515,1705068648377,-500.0,0.00022859,2]
[311366517,1705068648387,-500.0,0.00022859,2]
[311366519,1705068648397,-4904.47,0.00022859,2]
[311366521,1705068648406,-500.0,0.00022859,2]
[311366523,1705068648415,-500.0,0.00022859,2]
[311366525,1705068648425,-500.0,0.00022859,2]
[311366527,1705068648434,-2566.15,0.00022859,2]
[311366529,1705068648443,-500.0,0.00022859,2]
[311366530,1705068648452,-500.0,0.00022859,2]
[311366532,1705068648462,-500.0,0.00022859,2]
[311366535,1705068648471,-500.0,0.00022859,2]
[311366537,1705068648481,-500.0,0.00022859,2]
[311366539,1705068648490,-500.0,0.00022859,2]
[311366541,1705068648501,-500.0,0.00022859,2]
[311366543,1705068648510,-500.0,0.00022859,2]
[311366545,1705068648525,-551.39,0.00022859,2]
[311366547,1705068648534,-500.0,0.00022859,2]
[311366549,1705068648544,-751.16,0.00022859,2]
[311366551,1705068648554,-500.0,0.00022859,2]
[311366553,1705068648563,-500.0,0.00022859,2]
[311366555,1705068648573,-565.89,0.00022859,2]
[311366557,1705068648583,-500.0,0.00022859,2]
[311366560,1705068648592,-500.0,0.00022859,2]
[311366561,1705068648602,-500.0,0.00022859,2]
[311366564,1705068648612,-556.96,0.00022859,2]
[311366565,1705068648621,-2171.09,0.00022859,2]
[311366568,1705068648631,-500.0,0.00022859,2]
[311366570,1705068648640,-500.0,0.00022859,2]
[311366572,1705068648650,-500.0,0.00022859,2]
[311366573,1705068648659,-500.0,0.00022859,2]
[311366576,1705068648668,-927.51,0.00022859,2]
[311366578,1705068648681,-508.46,0.00022859,2]
[311366580,1705068648690,-500.0,0.00022859,2]
[311366582,1705068648699,-530.03,0.00022859,2]
[311366584,1705068648709,-500.0,0.00022859,2]
[311366586,1705068648719,-500.0,0.00022859,2]
[311366588,1705068648728,-500.0,0.00022859,2]
[311366590,1705068648736,-1141.98,0.00022859,2]
[311366592,1705068648746,-500.0,0.00022859,2]
[311366594,1705068648755,-504.43,0.00022859,2]
[311366596,1705068648764,-712.64,0.00022859,2]
[311366598,1705068648774,-500.0,0.00022859,2]
[311366600,1705068648783,-500.0,0.00022859,2]
[311366602,1705068648792,-500.0,0.00022859,2]
[311366604,1705068648802,-500.0,0.00022859,2]
[311366606,1705068648811,-896.51,0.00022859,2]
[311366608,1705068648821,-500.0,0.00022859,2]
[311366610,1705068648830,-500.0,0.00022859,2]
[311366612,1705068648839,-500.0,0.00022859,2]
[311366614,1705068648849,-500.0,0.00022859,2]
[311366616,1705068648858,-792.65,0.00022859,2]
[311366618,1705068648867,-712.49,0.00022859,2]
[311366620,1705068648877,-500.0,0.00022859,2]
[311366622,1705068648886,-500.0,0.00022859,2]
[311366624,1705068648895,-500.0,0.00022859,2]
[311366626,1705068648904,-1100.3,0.00022859,2]
[311366628,1705068648916,-500.0,0.00022859,2]
[311366630,1705068648926,-562.53,0.00022859,2]
[311366632,1705068648935,-500.0,0.00022859,2]
[311366634,1705068648944,-500.0,0.00022859,2]
[311366636,1705068648954,-1718.1,0.00022859,2]
[311366638,1705068648965,-500.0,0.00022859,2]
[311366640,1705068648974,-535.2,0.00022859,2]
[311366642,1705068648983,-500.0,0.00022859,2]
[311366644,1705068648995,-500.0,0.00022859,2]
[311366646,1705068649006,-598.71,0.00022859,2]
[311366648,1705068649016,-3255.5,0.00022859,2]
[311366650,1705068649025,-500.0,0.00022859,2]
[311366652,1705068649034,-500.0,0.00022859,2]
[311366654,1705068649043,-500.0,0.00022859,2]
[311366656,1705068649052,-500.0,0.00022859,2]
[311366658,1705068649061,-500.0,0.00022859,2]
[311366660,1705068649070,-500.0,0.00022859,2]
[311366662,1705068649080,-500.0,0.00022859,2]
[311366664,1705068649089,-500.0,0.00022859,2]
[311366666,1705068649099,-370.05,0.00022859,2]
[311366668,1705068649110,-624.02,0.00022859,2]
[311366670,1705068649119,-500.0,0.00022859,2]
[311366672,1705068649129,-500.0,0.00022859,2]
[311366674,1705068649138,-500.0,0.00022859,2]
[311366676,1705068649147,-500.0,0.00022859,2]
[311366678,1705068649157,-500.0,0.00022859,2]
[311366680,1705068649165,-500.0,0.00022859,2]
[311366682,1705068649175,-500.0,0.00022859,2]
[311366685,1705068649185,-500.0,0.00022859,2]
[311366687,1705068649194,-500.0,0.00022859,2]
[311366689,1705068649203,-500.0,0.00022859,2]
[311366691,1705068649212,-833.52,0.00022859,2]
[311366693,1705068649222,-500.0,0.00022859,2]
[311366694,1705068649231,-500.0,0.00022859,2]
[311366696,1705068649241,-500.0,0.00022859,2]
[311366697,1705068649251,-500.0,0.00022859,2]
[311366699,1705068649260,-500.0,0.00022859,2]
[311366701,1705068649269,-500.0,0.00022859,2]
[311366704,1705068649279,-534.96,0.00022859,2]
[311366705,1705068649289,-500.0,0.00022859,2]
[311366707,1705068649298,-500.0,0.00022859,2]
[311366709,1705068649308,-573.25,0.00022859,2]
[311366711,1705068649317,-500.0,0.00022859,2]
[311366713,1705068649326,-623.75,0.00022859,2]
[311366715,1705068649335,-500.0,0.00022859,2]
[311366717,1705068649345,-500.0,0.00022859,2]
[311366719,1705068649354,-500.0,0.00022859,2]
[311366721,1705068649363,-803.61,0.00022859,2]
[311366723,1705068649372,-500.0,0.00022859,2]
[311366725,1705068649381,-500.0,0.00022859,2]
[311366727,1705068649391,-1705.99,0.00022859,2]
[311366729,1705068649400,-500.0,0.00022859,2]
[311366731,1705068649410,-500.0,0.00022859,2]
[311366733,1705068649419,-500.0,0.00022859,2]
[311366735,1705068649428,-500.0,0.00022859,2]
[311366737,1705068649438,-500.0,0.00022859,2]
[311366739,1705068649447,-500.0,0.00022859,2]
[311366741,1705068649457,-500.0,0.00022859,2]
[311366743,1705068649466,-500.0,0.00022859,2]
[311366745,1705068649476,-500.0,0.00022859,2]
[311366747,1705068649485,-500.0,0.00022859,2]
[311366749,1705068649494,-1306.6,0.00022859,2]
[311366751,1705068649505,-500.0,0.00022859,2]
[311366753,1705068649515,-350.35303602,0.00022859,2]
[311366755,1705068649524,-500.0,0.00022859,2]
[311366757,1705068649534,-556.74440777,0.00022859,2]
[311366759,1705068649543,-500.0,0.00022859,2]
[311366761,1705068649553,-500.0,0.00022859,2]
[311366763,1705068649563,-500.0,0.00022859,2]
[311366765,1705068649572,-500.0,0.00022859,2]
[311366767,1705068649582,-500.0,0.00022859,2]
[311366769,1705068649591,-500.0,0.00022859,2]
[311366771,1705068649600,-1244.96,0.00022859,2]
[311366773,1705068649609,-500.0,0.00022859,2]
[311366775,1705068649619,-500.0,0.00022859,2]
[311366777,1705068649628,-500.0,0.00022859,2]
[311366779,1705068649637,-564.73,0.00022859,2]
[311366781,1705068649647,-500.0,0.00022859,2]
[311366782,1705068649656,-500.0,0.00022859,2]
[311366784,1705068649665,-500.0,0.00022859,2]
[311366786,1705068649674,-500.0,0.00022859,2]
[311366788,1705068649683,-500.0,0.00022859,2]
[311366789,1705068649693,-500.0,0.00022859,2]
[311366791,1705068649702,-942.16,0.00022859,2]
[311366793,1705068649712,-500.0,0.00022859,2]
[311366794,1705068649721,-500.0,0.00022859,2]
[311366795,1705068649731,-4152.7,0.00022859,2]
[311366796,1705068649740,-500.0,0.00022859,2]
[311366797,1705068649750,-250.0,0.00022859,2]
[311366799,1705068649759,-676.77,0.00022859,2]
[311366801,1705068649768,-500.0,0.00022859,2]
[311366803,1705068649777,-500.0,0.00022859,2]
[311366805,1705068649786,-500.0,0.00022859,2]
[311366807,1705068649795,-500.0,0.00022859,2]
[311366809,1705068649805,-500.0,0.00022859,2]
[311366811,1705068649814,-659.94,0.00022859,2]
[311366813,1705068649823,-500.0,0.00022859,2]
[311366815,1705068649832,-500.0,0.00022859,2]
[311366817,1705068649841,-1330.66,0.00022859,2]
[311366819,1705068649851,-500.0,0.00022859,2]
[311366821,1705068649860,-561.56,0.00022859,2]
[311366823,1705068649869,-500.0,0.00022859,2]
[311366825,1705068649879,-1475.03,0.00022859,2]
[311366827,1705068649889,-651.59,0.00022859,2]
[311366834,1705068649971,-500.0,0.00022859,2]
[311366835,1705068649981,-500.0,0.00022859,2]
[311366836,1705068649991,-500.0,0.0002286,2]
[311366837,1705068650003,-500.0,0.0002286,2]
[311366838,1705068650013,-561.67,0.0002286,2]
[311366839,1705068650023,-349.45870507,0.00022876,2]
[311366840,1705068650033,-9342.80880172,0.00022881,2]
[311366841,1705068650044,-156.2,0.00022888,2]
[311366842,1705068650055,-192.22393977,0.000229,2]
[311366843,1705068650065,-174.62818763,0.000229,2]
[311366844,1705068650076,-487.4561927,0.000229,2]
[311366845,1705068650085,-1876.33088346,0.000229,2]
[311366847,1705068650096,-201.04231172,0.000229,2]
[311366849,1705068650106,-9342.80880172,0.00022932,2]
[311366850,1705068650117,-9342.80880172,0.00022982,2]
[311366852,1705068650127,-314.8680558,0.0002299,2]
[311366855,1705068650139,-500.0,0.00022999,2]
[311366856,1705068650149,-500.0,0.00022999,2]
[311366858,1705068650158,-500.0,0.00022999,2]
[311366860,1705068650169,-500.0,0.00022999,2]
[311366863,1705068650179,-500.0,0.00022999,2]
[311366864,1705068650189,-500.0,0.00022999,2]
[311366867,1705068650199,-500.0,0.00022999,2]
[311366869,1705068650209,-500.0,0.00022999,2]
[311366871,1705068650220,-546.72,0.00022999,2]
[311366872,1705068650230,-1895.47,0.00022999,2]
[311366874,1705068650240,-1895.47,0.00022999,2]
[311366876,1705068650253,-1895.47,0.00022999,2]
[311366878,1705068650263,-1895.47,0.00022999,2]
[311366880,1705068650273,-1895.47,0.00022999,2]
[311366882,1705068650283,-1895.47,0.00022999,2]
[311366884,1705068650293,-1895.47,0.00022999,2]
[311366886,1705068650302,-1895.47,0.00022999,2]
[311366888,1705068650312,-1895.47,0.00022999,2]
[311366890,1705068650322,-1895.47,0.00022999,2]
[311366892,1705068650332,-1895.47,0.00022999,2]
[311366894,1705068650342,-1895.47,0.00022999,2]
[311366896,1705068650351,-1895.47,0.00022999,2]
[311366898,1705068650360,-1895.47,0.00022999,2]
[311366900,1705068650369,-1895.47,0.00022999,2]
[311366902,1705068650378,-1895.47,0.00022999,2]
[311366904,1705068650387,-1895.47,0.00022999,2]
[311366906,1705068650397,-1895.47,0.00022999,2]
[311366908,1705068650406,-1895.47,0.00022999,2]
[311366910,1705068650416,-1895.47,0.00022999,2]
[311366912,1705068650425,-1895.47,0.00022999,2]
[311366914,1705068650434,-1895.57029127,0.00022999,2]
[311366915,1705068650444,-150.0,0.00022999,2]
[311366917,1705068650454,-150.0,0.00022999,2]
[311366919,1705068650463,-2323109.06272299,0.00023,2]
[311366954,1705068650904,-83339.04733293,0.00023,2]
[311366955,1705068650928,-50943.55479461,0.00023,2]
[311366956,1705068650988,-305.40850915,0.00023,2]
[311366957,1705068651003,-1481.07984364,0.00023,2]
[311366958,1705068651077,-1780.16403589,0.00023,2]
[311366959,1705068651089,-1002.07127916,0.00023,2]
[311366960,1705068651101,-263.40803857,0.00023,2]
[311366961,1705068651113,-13202.63496229,0.00023,2]
[311366962,1705068651124,-13905.63435019,0.00023,2]
[311366963,1705068651135,-3345.55352288,0.00023,2]
[311366965,1705068651173,-257.60914271,0.00023,2]
[311366968,1705068651184,-4974.80592878,0.00023,2]
[311366970,1705068651195,-117452.73342742,0.00023,2]
[311366972,1705068651206,-17346.97063968,0.00023,2]
[311366974,1705068651218,-4809.31574473,0.00023,2]
[311366977,1705068651233,-22400.0,0.00023,2]
[311366979,1705068651245,-680.5914592,0.00023,2]
[311366981,1705068651258,-3669.88098301,0.00023,2]
[311366983,1705068651269,-11531.56272385,0.00023,2]
[311366985,1705068651280,-1095569.432715,0.00023,2]
[311366989,1705068651309,-714.62181002,0.00023,2]
[311366992,1705068651321,-74737.43470591,0.00023,2]
[311367020,1705068651668,-685.97388283,0.00022582,2]
[311367021,1705068651679,-287.10915169,0.00022582,2]
[311367022,1705068651690,-183.35058856,0.00022582,2]
[311367024,1705068651700,-111.88086603,0.00023,2]
[311367026,1705068651711,-1090.96876029,0.00023,2]
[311367028,1705068651722,-2933.57076932,0.00023,2]
[311367030,1705068651733,-650.0,0.00023,2]
[311367032,1705068651743,-631.15857409,0.00023,2]
[311367120,1705068652771,-316.34365825,0.00022581,2]
[311367121,1705068652782,-55.62882394,0.00022581,2]
[311367122,1705068652792,-500.0,0.00022584,2]
[311367123,1705068652800,-1476.87117606,0.00022615,2]
[311367125,1705068652811,-430.83127647,0.00022615,2]
[311367128,1705068652822,-662.66064783,0.00022615,2]
[311367135,1705068652885,-362.39689964,0.00022615,2]
[311367137,1705068652895,-500.0,0.00022858,2]
[311367139,1705068652905,-696.40230036,0.00023,2]
[311367146,1705068653377,-203.65680147,0.00022581,2]
[311367147,1705068653387,-894.0340027,0.00022582,2]
[311367148,1705068653396,-500.0,0.00022585,2]
[311367149,1705068653406,-544.13,0.00022859,2]
[311367150,1705068653415,-20426.4467939,0.00023,2]
[311367151,1705068653427,-834.91963717,0.00023,2]
[311367152,1705068653438,-1116.20214145,0.00023,2]
[311367153,1705068653449,-450.39572349,0.00023,2]
[311367154,1705068653460,-420.47620801,0.00023,2]
[311367155,1705068653471,-1352.6025662,0.00023,2]
[311367156,1705068653483,-2137.2968041,0.00023,2]
[311367157,1705068653494,-6757.67886829,0.00023,2]
[311367158,1705068653508,-832.97723447,0.00023,2]
[311367159,1705068653520,-680.3546727,0.00023,2]
[311367160,1705068653531,-1282.89966607,0.00023,2]
[311367161,1705068653544,-324.50393721,0.00023,2]
[311367162,1705068653555,-341.04,0.00023,2]
[311367163,1705068653572,-500.0,0.00022585,2]
[311367164,1705068653581,-1318.53714007,0.00023,2]
[311367165,1705068653593,-907.17504391,0.00023,2]
[311367166,1705068653605,-408.94612682,0.00023,2]
[311367167,1705068653617,-243722.37868176,0.00023,2]
[311367168,1705068653628,-1322699.71193559,0.00023,2]
[311367169,1705068653646,-183.72602259,0.0002258,2]
[311367170,1705068653655,-386.63009605,0.00023,2]
[311367171,1705068653668,-1317.63765125,0.00023,2]
[311367172,1705068653679,-865.5495183,0.00023,2]
[311367173,1705068653691,-5762.25085826,0.00023,2]
[311367174,1705068653703,-2622.45646316,0.00023,2]
[311367175,1705068653714,-455.2300002,0.00023,2]
[311367176,1705068653726,-3077.075,0.00023,2]
[311367177,1705068653738,-5369.48845275,0.00023,2]
[311367178,1705068653749,-1471.63528733,0.00023,2]
[311367179,1705068653763,-1687.33736299,0.00023,2]
[311367180,1705068653774,-423.95581672,0.00023,2]
[311367181,1705068653789,-1759.07957704,0.00023,2]
[311367182,1705068653803,-2297.79500463,0.00023,2]
[311367183,1705068653815,-460399.71000062,0.00023,2]
[311367184,1705068653826,-11838.65059956,0.00023,2]
[311367185,1705068653840,-2937.94305185,0.00023,2]
[311367186,1705068653853,-844.94168302,0.00023,2]
[311367187,1705068654549,-14266.3754926,0.0002258,2]
[311367188,1705068654561,-10480.51462279,0.0002258,2]
[311367189,1705068654571,-1952.50831161,0.0002258,2]
[311367190,1705068654583,-44456.03959997,0.0002258,2]
[311367191,1705068654594,-220157.18856399,0.0002258,2]
[311367192,1705068654604,-2049.73940079,0.0002258,2]
[311367193,1705068654614,-3227.37423432,0.0002258,2]
[311367194,1705068654623,-260.86670952,0.0002258,2]
[311367195,1705068654635,-293.07319521,0.0002258,2]
[311367196,1705068654644,-155.0,0.0002258,2]
[311367197,1705068654654,-254.93626307,0.00022583,2]
[311367198,1705068654663,-500.0,0.00022584,2]
[311367199,1705068654673,-255.0,0.00022585,2]
[311367200,1705068654683,-500.0,0.00022585,2]